fUSD/lending_fUSD_20240216
["ID","MTS","AMOUNT","RATE_DAILY","PERIOD"]
[314254204,1708119133795,-500.0,0.00051506,60]
[314254205,1708119133807,-500.0,0.00051506,60]
[314254206,1708119133817,-1344.54,0.00051506,60]
[314254207,1708119133827,-500.0,0.00051506,60]
[314254208,1708119133839,-842.36,0.00051506,2]
[314254209,1708119133849,-2942.14,0.00051506,60]
[314254210,1708119133860,-505.82,0.00051506,60]
[314254211,1708119133870,-500.0,0.00051506,60]
[314254212,1708119133879,-2570.64,0.00051506,60]
[314254213,1708119133888,-2688.02,0.00051506,60]
[314254214,1708119133897,-2260.09,0.00051506,60]
[314254215,1708119133906,-500.0,0.00051506,60]
[314254216,1708119133918,-500.0,0.00051506,60]
[314254217,1708119133929,-716.26,0.00051506,60]
[314254218,1708119133938,-924.33,0.00051506,60]
[314254219,1708119133947,-500.0,0.00051506,60]
[314254220,1708119133956,-657.39,0.00051506,60]
[314254221,1708119133966,-500.0,0.00051506,60]
[314254222,1708119133975,-2023.51,0.00051506,60]
[314254223,1708119133986,-1625.46,0.00051506,60]
[314254224,1708119133997,-506.3,0.00051506,60]
[314254225,1708119134006,-500.0,0.00051506,60]
[314254226,1708119134015,-953.19,0.00051506,60]
[314254227,1708119134025,-500.0,0.00051506,60]
[314254228,1708119134034,-680.83,0.00051506,60]
[314254229,1708119134043,-1719.81,0.00051506,60]
[314254230,1708119134053,-586.01,0.00051506,60]
[314254231,1708119134062,-582.82,0.00051506,60]
[314254232,1708119134072,-562.1,0.00051506,60]
[314254233,1708119134082,-659.84,0.00051506,60]
[314254234,1708119134091,-4202.04,0.00051506,60]
[314254235,1708119134101,-7068.33,0.00051506,60]
[314254236,1708119134110,-500.0,0.00051506,60]
[314254237,1708119134120,-500.0,0.00051506,60]
[314254238,1708119134129,-500.0,0.00051506,60]
[314254239,1708119134138,-2643.96,0.00051506,60]
[314254240,1708119134149,-500.0,0.00051506,60]
[314254241,1708119134158,-500.0,0.00051506,60]
[314254242,1708119134168,-600.0,0.00051506,60]
[314254243,1708119134177,-1183.13,0.00051506,60]
[314254244,1708119134187,-500.0,0.00051506,60]
[314254245,1708119134196,-1949.14,0.00051506,60]
[314254246,1708119134206,-500.0,0.00051506,60]
[314254247,1708119134215,-566.21,0.00051506,60]
[314254248,1708119134224,-1927.89,0.00051506,60]
[314254249,1708119134233,-500.0,0.00051506,60]
[314254250,1708119134244,-699.96,0.00051506,60]
[314254251,1708119134253,-500.0,0.00051506,60]
[314254252,1708119134263,-3348.01,0.00051506,60]
[314254253,1708119134273,-1200.81,0.00051506,60]
[314254254,1708119134283,-500.0,0.00051506,60]
[314254255,1708119134292,-1872.95,0.00051506,60]
[314254256,1708119134302,-529.58,0.00051506,60]
[314254257,1708119134313,-716.71,0.00051506,60]
[314254258,1708119134323,-693.17,0.00051506,60]
[314254259,1708119134334,-500.0,0.00051506,60]
[314254260,1708119134345,-1099.89,0.00051506,60]
[314254261,1708119134356,-500.0,0.00051506,60]
[314254262,1708119134366,-500.0,0.00051506,60]
[314254263,1708119134375,-552.07,0.00051506,60]
[314254264,1708119134385,-500.0,0.00051506,60]
[314254265,1708119134395,-1791.39,0.00051506,60]
[314254266,1708119134404,-500.0,0.00051506,60]
[314254267,1708119134415,-573.51,0.00051506,60]
[314254268,1708119134426,-500.0,0.00051506,60]
[314254269,1708119134436,-500.0,0.00051506,60]
[314254270,1708119134447,-777.88,0.00051506,60]
[314254271,1708119134457,-1055.53,0.00051506,60]
[314254272,1708119134468,-722.67,0.00051506,60]
[314254273,1708119134478,-1887.23,0.00051506,60]
[314254274,1708119134490,-500.0,0.00051506,60]
[314254275,1708119134499,-500.0,0.00051506,60]
[314254276,1708119134513,-674.89,0.00051506,60]
[314254277,1708119134523,-2198.11,0.00051506,60]
[314254278,1708119134533,-8115.72,0.00051506,60]
[314254279,1708119134543,-701.75,0.00051506,60]
[314254280,1708119134554,-500.0,0.00051506,60]
[314254281,1708119134563,-779.02,0.00051506,60]
[314254282,1708119134574,-500.0,0.00051506,60]
[314254283,1708119134584,-1002.39,0.00051506,60]
[314254284,1708119134594,-500.0,0.00051506,60]
[314254285,1708119134604,-1272.04,0.00051506,60]
[314254286,1708119134614,-1115.22,0.00051506,60]
[314254287,1708119134624,-500.0,0.00051506,60]
[314254288,1708119134635,-505.42,0.00051506,60]
[314254289,1708119134647,-3301.31,0.00051506,60]
[314254290,1708119134658,-626.52,0.00051506,60]
[314254291,1708119134667,-500.0,0.00051506,60]
[314254292,1708119134677,-500.0,0.00051506,60]
[314254293,1708119134688,-500.0,0.00051506,60]
[314254294,1708119134699,-500.0,0.00051506,60]
[314254295,1708119134710,-1972.92,0.00051506,60]
[314254296,1708119134721,-500.0,0.00051506,60]
[314254297,1708119134731,-991.91,0.00051506,60]
[314254298,1708119134741,-914.46,0.00051506,60]
[314254299,1708119134751,-500.0,0.00051506,60]
[314254300,1708119134762,-536.93,0.00051506,60]
[314254301,1708119134773,-500.0,0.00051506,60]
[314254302,1708119134783,-500.0,0.00051506,60]
[314254303,1708119134794,-500.0,0.00051506,60]
[314254304,1708119134806,-542.11418563,0.00051506,60]
[314254305,1708119134816,-561.0405631,0.00051506,60]
[314254306,1708119134827,-6496.83,0.00051506,60]
[314254307,1708119134839,-500.0,0.00051506,2]
[314254308,1708119134849,-500.0,0.00051506,60]
[314254309,1708119134862,-152.72220558,0.0005151,50]
[314254310,1708119134873,-177.0556127,0.00051518,60]
[314254311,1708119134884,-150.95,0.00051633,2]
[314254312,1708119134896,-446.86408125,0.00051693,30]
[314254313,1708119134907,-182.46208837,0.00051693,30]
[314254314,1708119134919,-288.21600538,0.00051693,30]
[314254315,1708119134931,-332.83372129,0.00051693,30]
[314254316,1708119134942,-325.64438562,0.00051693,30]
[314254317,1708119134952,-200.0,0.000517,87]
[314254318,1708119134963,-702.4176784,0.000517,25]
[314254319,1708119134973,-205.0,0.00051724,29]
[314254320,1708119134984,-150.0,0.0005178,60]
[314254321,1708119134994,-500.0,0.0005178,60]
[314254322,1708119135006,-500.0,0.0005178,60]
[314254323,1708119135017,-500.0,0.0005178,60]
[314254324,1708119135028,-500.0,0.0005178,60]
[314254325,1708119135038,-529.27992312,0.0005178,60]
[314254326,1708119135048,-500.0,0.0005178,60]
[314254327,1708119135058,-500.0,0.0005178,60]
[314254328,1708119135068,-500.0,0.0005178,60]
[314254329,1708119135078,-500.0,0.0005178,60]
[314254330,1708119135088,-500.0,0.0005178,60]
[314254331,1708119135099,-500.0,0.0005178,60]
[314254332,1708119135109,-500.0,0.0005178,60]
[314254333,1708119135119,-500.0,0.0005178,60]
[314254334,1708119135128,-500.0,0.0005178,60]
[314254335,1708119135139,-500.0,0.0005178,60]
[314254336,1708119135149,-500.0,0.0005178,60]
[314254337,1708119135159,-500.0,0.0005178,60]
[314254338,1708119135169,-500.0,0.0005178,60]
[314254339,1708119135179,-500.0,0.0005178,60]
[314254340,1708119135189,-500.0,0.0005178,60]
[314254341,1708119135200,-500.0,0.0005178,60]
[314254342,1708119135210,-500.0,0.0005178,60]
[314254343,1708119135220,-500.0,0.0005178,60]
[314254344,1708119135230,-500.0,0.0005178,60]
[314254345,1708119135240,-500.0,0.0005178,60]
[314254346,1708119135250,-500.0,0.0005178,60]
[314254347,1708119135260,-500.0,0.0005178,60]
[314254348,1708119135270,-500.0,0.0005178,60]
[314254349,1708119135281,-341.51133292,0.0005178,60]
[314254350,1708119135290,-500.0,0.0005178,60]
[314254351,1708119135300,-500.0,0.0005178,60]
[314254352,1708119135311,-500.0,0.0005178,60]
[314254353,1708119135323,-500.0,0.0005178,60]
[314254354,1708119135333,-500.0,0.0005178,60]
[314254355,1708119135343,-500.0,0.0005178,60]
[314254356,1708119135353,-500.0,0.0005178,60]
[314254357,1708119135363,-500.0,0.0005178,60]
[314254358,1708119135374,-500.0,0.0005178,60]
[314254359,1708119135384,-500.0,0.0005178,60]
[314254360,1708119135394,-500.0,0.0005178,60]
[314254361,1708119135404,-500.0,0.0005178,60]
[314254362,1708119135414,-500.0,0.0005178,60]
[314254363,1708119135424,-664.54,0.0005178,30]
[314254364,1708119135434,-500.0,0.0005178,60]
[314254365,1708119135444,-500.0,0.0005178,60]
[314254366,1708119135454,-500.0,0.0005178,60]
[314254367,1708119135464,-568.05,0.0005178,2]
[314254368,1708119135474,-500.0,0.0005178,60]
[314254369,1708119135484,-500.0,0.0005178,60]
[314254370,1708119135494,-500.0,0.0005178,60]
[314254371,1708119135504,-500.0,0.0005178,60]
[314254372,1708119135514,-500.0,0.0005178,60]
[314254373,1708119135524,-500.0,0.0005178,60]
[314254374,1708119135534,-500.0,0.0005178,60]
[314254375,1708119135544,-500.0,0.0005178,60]
[314254376,1708119135555,-500.0,0.0005178,60]
[314254377,1708119135565,-500.0,0.0005178,60]
[314254378,1708119135576,-520.83813731,0.0005178,60]
[314254379,1708119135586,-417.62562759,0.0005178,60]
[314254380,1708119135597,-500.0,0.0005178,60]
[314254381,1708119135607,-500.0,0.0005178,60]
[314254382,1708119135617,-500.0,0.0005178,60]
[314254383,1708119135627,-500.0,0.0005178,60]
[314254384,1708119135637,-500.0,0.0005178,60]
[314254385,1708119135647,-500.0,0.0005178,60]
[314254386,1708119135658,-500.0,0.0005178,60]
[314254387,1708119135670,-500.0,0.0005178,60]
[314254388,1708119135681,-500.0,0.0005178,60]
[314254389,1708119135692,-500.0,0.0005178,60]
[314254390,1708119135704,-500.0,0.0005178,60]
[314254391,1708119135715,-500.0,0.0005178,60]
[314254392,1708119135725,-500.0,0.0005178,60]
[314254393,1708119135736,-500.0,0.0005178,60]
[314254394,1708119135746,-500.0,0.0005178,60]
[314254395,1708119135756,-422.40871873,0.0005178,60]
[314254396,1708119135767,-500.0,0.0005178,60]
[314254397,1708119135777,-500.0,0.0005178,60]
[314254398,1708119135787,-569.02861569,0.0005178,60]
[314254399,1708119135797,-631.37,0.0005178,60]
[314254400,1708119135807,-500.0,0.0005178,60]
[314254401,1708119135818,-500.0,0.0005178,60]
[314254402,1708119135829,-500.0,0.0005178,60]
[314254403,1708119135839,-500.0,0.0005178,60]
[314254404,1708119135849,-500.0,0.0005178,60]
[314254405,1708119135860,-500.0,0.0005178,60]
[314254406,1708119135871,-500.0,0.0005178,60]
[314254407,1708119135881,-500.0,0.0005178,60]
[314254408,1708119135891,-500.0,0.0005178,60]
[314254409,1708119135902,-500.0,0.0005178,60]
[314254410,1708119135912,-500.0,0.0005178,60]
[314254411,1708119135926,-500.0,0.0005178,60]
[314254412,1708119135937,-500.0,0.0005178,60]
[314254413,1708119135946,-500.0,0.0005178,60]
[314254414,1708119135956,-500.0,0.0005178,60]
[314254415,1708119135967,-549.14,0.0005178,60]
[314254416,1708119135977,-338.7356307,0.0005178,60]
[314254417,1708119135988,-500.0,0.0005178,60]
[314254418,1708119136003,-500.0,0.0005178,60]
[314254419,1708119136014,-500.0,0.0005178,60]
[314254420,1708119136025,-500.0,0.0005178,60]
[314254421,1708119136035,-500.0,0.0005178,60]
[314254422,1708119136045,-500.0,0.0005178,60]
[314254423,1708119136057,-500.0,0.0005178,60]
[314254424,1708119136068,-500.0,0.0005178,60]
[314254425,1708119136078,-500.0,0.0005178,60]
[314254426,1708119136088,-953.91,0.0005178,60]
[314254427,1708119136099,-713.03,0.0005178,60]
[314254428,1708119136110,-500.0,0.0005178,60]
[314254429,1708119136120,-639.89,0.0005178,60]
[314254430,1708119136131,-500.0,0.0005178,60]
[314254431,1708119136141,-510.16,0.0005178,60]
[314254432,1708119136151,-500.0,0.0005178,60]
[314254433,1708119136161,-500.0,0.0005178,60]
[314254434,1708119136171,-500.0,0.0005178,60]
[314254435,1708119136180,-580.88,0.0005178,60]
[314254436,1708119136190,-500.0,0.0005178,60]
[314254437,1708119136202,-500.0,0.0005178,60]
[314254438,1708119136212,-500.0,0.0005178,60]
[314254439,1708119136222,-216.51583979,0.0005178,60]
[314254440,1708119136232,-555.94,0.0005178,60]
[314254441,1708119136243,-572.13,0.0005178,60]
[314254442,1708119136254,-570.46,0.0005178,60]
[314254443,1708119136264,-551.75,0.0005178,60]
[314254444,1708119136275,-500.0,0.0005178,60]
[314254445,1708119136286,-500.0,0.0005178,60]
[314254446,1708119136297,-500.0,0.0005178,60]
[314254447,1708119136308,-500.0,0.0005178,60]
[314254448,1708119136319,-616.49,0.0005178,60]
[314254449,1708119136330,-500.0,0.0005178,60]
[314254450,1708119136340,-500.0,0.0005178,60]
[314254451,1708119136351,-500.0,0.0005178,60]
[314254452,1708119136361,-569.39,0.0005178,60]
[314254453,1708119136371,-500.0,0.0005178,60]
[314254454,1708119136383,-500.0,0.0005178,60]
[314254455,1708119136394,-500.0,0.0005178,60]
[314254456,1708119136405,-231.91297466,0.0005178,60]
[314254457,1708119136415,-614.71,0.0005178,60]
[314254458,1708119136649,-500.0,0.0005178,60]
[314254459,1708119136662,-500.0,0.0005178,60]
[314254460,1708119136671,-500.0,0.0005178,60]
[314254461,1708119136681,-500.0,0.0005178,60]
[314254462,1708119136690,-2236.49,0.0005178,60]
[314254463,1708119136700,-869.27,0.0005178,60]
[314254464,1708119136709,-679.72,0.0005178,60]
[314254465,1708119136718,-514.97,0.0005178,60]
[314254466,1708119136727,-500.0,0.0005178,60]
[314254467,1708119136737,-745.29,0.0005178,60]
[314254468,1708119136747,-500.0,0.0005178,60]
[314254469,1708119136757,-597.04,0.0005178,60]
[314254470,1708119136766,-500.0,0.0005178,60]
[314254471,1708119136775,-647.43,0.0005178,60]
[314254472,1708119136785,-541.75,0.0005178,60]
[314254473,1708119136794,-500.0,0.0005178,60]
[314254474,1708119136803,-500.0,0.0005178,60]
[314254475,1708119136816,-1088.61,0.0005178,2]
[314254476,1708119136825,-500.0,0.0005178,60]
[314254477,1708119136835,-500.0,0.0005178,60]
[314254478,1708119136844,-500.0,0.0005178,60]
[314254479,1708119136854,-500.0,0.0005178,60]
[314254480,1708119136863,-500.0,0.0005178,60]
[314254481,1708119136873,-500.0,0.0005178,60]
[314254482,1708119136883,-500.0,0.0005178,60]
[314254483,1708119136892,-568.01,0.0005178,60]
[314254484,1708119136901,-500.0,0.0005178,60]
[314254485,1708119136912,-581.86,0.0005178,60]
[314254486,1708119136927,-500.0,0.0005178,60]
[314254487,1708119136936,-500.0,0.0005178,60]
[314254488,1708119136946,-792.04,0.0005178,60]
[314254489,1708119136956,-500.0,0.0005178,60]
[314254490,1708119136967,-500.0,0.0005178,60]
[314254491,1708119136977,-500.0,0.0005178,60]
[314254492,1708119136987,-500.0,0.0005178,60]
[314254493,1708119136997,-500.0,0.0005178,60]
[314254494,1708119137008,-500.0,0.0005178,60]
[314254495,1708119137018,-574.86,0.0005178,60]
[314254496,1708119137028,-500.0,0.0005178,60]
[314254497,1708119137037,-163.76058927,0.0005178,60]
[314254498,1708119137047,-500.0,0.0005178,60]
[314254499,1708119137057,-724.01,0.0005178,60]
[314254500,1708119137066,-500.0,0.0005178,60]
[314254501,1708119137076,-500.0,0.0005178,30]
[314254502,1708119137085,-614.29,0.0005178,60]
[314254503,1708119137096,-500.0,0.0005178,60]
[314254504,1708119137106,-500.0,0.0005178,60]
[314254505,1708119137115,-500.0,0.0005178,60]
[314254506,1708119137124,-500.0,0.0005178,60]
[314254507,1708119137134,-500.0,0.0005178,60]
[314254508,1708119137144,-574.15,0.0005178,60]
[314254509,1708119137154,-500.0,0.0005178,60]
[314254510,1708119137163,-500.0,0.0005178,60]
[314254511,1708119137172,-617.63,0.0005178,60]
[314254512,1708119137182,-1173.51,0.0005178,7]
[314254513,1708119137191,-604.06,0.0005178,60]
[314254514,1708119137201,-500.0,0.0005178,60]
[314254515,1708119137210,-500.0,0.0005178,60]
[314254516,1708119137220,-500.0,0.0005178,60]
[314254517,1708119137230,-500.0,0.0005178,60]
[314254518,1708119137240,-500.0,0.0005178,60]
[314254519,1708119137249,-500.0,0.0005178,60]
[314254520,1708119137259,-500.0,0.0005178,60]
[314254521,1708119137272,-511.02,0.0005178,60]
[314254522,1708119137282,-840.32,0.0005178,2]
[314254523,1708119137291,-500.0,0.0005178,60]
[314254524,1708119137301,-551.0,0.0005178,60]
[314254525,1708119137311,-500.0,0.0005178,60]
[314254526,1708119137323,-2031.12,0.0005178,2]
[314254527,1708119137335,-500.0,0.0005178,60]
[314254528,1708119137346,-500.0,0.0005178,60]
[314254529,1708119137358,-608.56,0.0005178,60]
[314254530,1708119137368,-500.0,0.0005178,60]
[314254531,1708119137378,-500.0,0.0005178,60]
[314254532,1708119137389,-542.29,0.0005178,60]
[314254533,1708119137401,-500.0,0.0005178,60]
[314254534,1708119137411,-500.0,0.0005178,60]
[314254535,1708119137423,-500.0,0.0005178,60]
[314254536,1708119137434,-500.0,0.0005178,60]
[314254537,1708119137444,-500.0,0.0005178,60]
[314254538,1708119137454,-500.0,0.0005178,60]
[314254539,1708119137466,-500.0,0.0005178,60]
[314254540,1708119137477,-500.0,0.0005178,60]
[314254541,1708119137488,-662.34,0.0005178,60]
[314254542,1708119137498,-500.0,0.0005178,60]
[314254543,1708119137508,-500.0,0.0005178,60]
[314254544,1708119137518,-500.0,0.0005178,60]
[314254545,1708119137529,-500.0,0.0005178,60]
[314254546,1708119137540,-500.0,0.0005178,60]
[314254547,1708119137549,-725.97,0.0005178,60]
[314254548,1708119137559,-500.0,0.0005178,60]
[314254549,1708119137571,-500.0,0.0005178,60]
[314254550,1708119137581,-862.39,0.0005178,60]
[314254551,1708119137590,-500.0,0.0005178,60]
[314254552,1708119137599,-500.0,0.0005178,60]
[314254553,1708119137609,-500.0,0.0005178,60]
[314254554,1708119137619,-500.0,0.0005178,60]
[314254555,1708119137628,-500.0,0.0005178,60]
[314254556,1708119137638,-500.0,0.0005178,60]
[314254557,1708119137648,-500.0,0.0005178,60]
[314254558,1708119137658,-500.0,0.0005178,60]
[314254559,1708119137668,-693.28,0.0005178,60]
[314254560,1708119137679,-500.0,0.0005178,60]
[314254561,1708119137689,-500.0,0.0005178,60]
[314254562,1708119137699,-703.48,0.0005178,60]
[314254563,1708119137709,-500.0,0.0005178,60]
[314254564,1708119137719,-566.58,0.0005178,60]
[314254565,1708119137729,-500.0,0.0005178,60]
[314254566,1708119137740,-500.0,0.0005178,60]
[314254567,1708119137750,-500.0,0.0005178,60]
[314254568,1708119137761,-500.0,0.0005178,60]
[314254569,1708119137770,-1032.17,0.0005178,60]
[314254570,1708119137781,-536.17,0.0005178,60]
[314254571,1708119137791,-500.0,0.0005178,60]
[314254572,1708119137801,-500.0,0.0005178,60]
[314254573,1708119137810,-986.8,0.0005178,60]
[314254574,1708119137819,-500.0,0.0005178,60]
[314254575,1708119137828,-500.0,0.0005178,60]
[314254576,1708119137837,-782.04,0.0005178,60]
[314254577,1708119137847,-539.44,0.0005178,60]
[314254578,1708119137857,-500.0,0.0005178,60]
[314254579,1708119137867,-500.0,0.0005178,60]
[314254580,1708119137876,-500.94,0.0005178,60]
[314254581,1708119137886,-500.0,0.0005178,60]
[314254582,1708119137895,-500.0,0.0005178,60]
[314254583,1708119137904,-500.0,0.0005178,60]
[314254584,1708119137913,-565.4556457,0.0005178,60]
[314254585,1708119137927,-500.0,0.0005178,60]
[314254586,1708119137937,-708.38,0.0005178,60]
[314254587,1708119137946,-500.0,0.0005178,60]
[314254588,1708119137956,-500.0,0.0005178,60]
[314254589,1708119137966,-500.0,0.0005178,60]
[314254590,1708119137976,-515.61,0.0005178,60]
[314254591,1708119137985,-500.0,0.0005178,60]
[314254592,1708119137999,-578.51,0.0005178,60]
[314254593,1708119138009,-500.0,0.0005178,7]
[314254594,1708119138018,-500.0,0.0005178,60]
[314254595,1708119138028,-500.0,0.0005178,60]
[314254596,1708119138037,-500.0,0.0005178,60]
[314254597,1708119138047,-500.0,0.0005178,60]
[314254598,1708119138056,-500.0,0.0005178,60]
[314254599,1708119138066,-940.09,0.0005178,60]
[314254600,1708119138075,-500.0,0.0005178,60]
[314254601,1708119138085,-500.0,0.0005178,60]
[314254602,1708119138095,-500.0,0.0005178,60]
[314254603,1708119138104,-500.0,0.0005178,60]
[314254604,1708119138114,-500.0,0.0005178,60]
[314254605,1708119138123,-500.0,0.0005178,60]
[314254606,1708119138132,-816.62,0.0005178,60]
[314254607,1708119138141,-500.0,0.0005178,60]
[314254608,1708119138151,-500.0,0.0005178,60]
[314254609,1708119138160,-500.0,0.0005178,60]
[314254610,1708119138170,-500.0,0.0005178,60]
[314254611,1708119138180,-500.0,0.0005178,60]
[314254612,1708119138189,-642.11,0.0005178,60]
[314254613,1708119138198,-500.0,0.0005178,60]
[314254614,1708119138208,-500.0,0.0005178,60]
[314254615,1708119138217,-297.82,0.0005178,60]
[314254616,1708119138227,-500.0,0.0005178,60]
[314254617,1708119138239,-500.0,0.0005178,60]
[314254618,1708119138249,-500.0,0.0005178,60]
[314254619,1708119138260,-1167.88,0.0005178,60]
[314254620,1708119138269,-219.30231186,0.0005178,60]
[314254621,1708119138279,-500.0,0.0005178,60]
[314254622,1708119138289,-500.0,0.0005178,60]
[314254623,1708119138299,-500.0,0.0005178,60]
[314254624,1708119138308,-851.65,0.0005178,60]
[314254625,1708119138318,-500.0,0.0005178,60]
[314254626,1708119138328,-500.0,0.0005178,60]
[314254627,1708119138337,-500.0,0.0005178,60]
[314254628,1708119138346,-500.0,0.0005178,60]
[314254629,1708119138355,-500.0,0.0005178,60]
[314254630,1708119138365,-2216.52,0.0005178,60]
[314254631,1708119138374,-500.0,0.0005178,60]
[314254632,1708119138383,-500.0,0.0005178,60]
[314254633,1708119138393,-500.0,0.0005178,60]
[314254634,1708119138403,-500.0,0.0005178,60]
[314254635,1708119138412,-500.0,0.0005178,60]
[314254636,1708119138422,-694.71,0.0005178,60]
[314254637,1708119138431,-500.0,0.0005178,60]
[314254638,1708119138441,-356.33,0.0005178,60]
[314254639,1708119138450,-290.8335617,0.0005178,60]
[314254640,1708119138460,-500.0,0.0005178,60]
[314254641,1708119138469,-255.85120932,0.0005178,60]
[314254642,1708119138479,-500.0,0.0005178,60]
[314254643,1708119138489,-2871.6,0.0005178,60]
[314254644,1708119138498,-500.0,0.0005178,60]
[314254645,1708119138507,-500.0,0.0005178,60]
[314254646,1708119138517,-500.0,0.0005178,60]
[314254647,1708119138526,-562.06,0.0005178,60]
[314254648,1708119138535,-500.0,0.0005178,60]
[314254649,1708119138544,-589.85,0.0005178,60]
[314254650,1708119138553,-629.14496869,0.0005178,60]
[314254651,1708119138563,-1083.11,0.0005178,60]
[314254652,1708119138574,-500.0,0.0005178,60]
[314254653,1708119138583,-2574.8,0.0005178,60]
[314254654,1708119138593,-500.0,0.0005178,60]
[314254655,1708119138602,-150.0,0.0005178,60]
[314254656,1708119138611,-500.0,0.0005178,60]
[314254657,1708119138620,-500.0,0.0005178,60]
[314254658,1708119138629,-500.0,0.0005178,60]
[314254659,1708119138639,-500.0,0.0005178,60]
[314254660,1708119138648,-890.17,0.0005178,60]
[314254661,1708119138657,-1244.45,0.0005178,60]
[314254662,1708119138666,-486.56489664,0.0005178,60]
[314254663,1708119138676,-500.0,0.0005178,60]
[314254664,1708119138685,-500.0,0.0005178,60]
[314254665,1708119138695,-500.0,0.0005178,60]
[314254666,1708119138704,-250.0,0.0005178,60]
[314254667,1708119138714,-588.9,0.0005178,60]
[314254668,1708119138722,-1983.03,0.0005178,60]
[314254669,1708119138735,-500.0,0.0005178,60]
[314254670,1708119138745,-500.0,0.0005178,60]
[314254671,1708119138755,-500.0,0.0005178,60]
[314254672,1708119138766,-500.0,0.0005178,60]
[314254673,1708119138775,-1068.84,0.0005178,60]
[314254674,1708119138784,-742.37,0.0005178,60]
[314254675,1708119138794,-803.55,0.0005178,60]
[314254676,1708119138803,-4400.67,0.0005178,60]
[314254677,1708119138812,-500.0,0.0005178,60]
[314254678,1708119138822,-821.93,0.0005178,60]
[314254679,1708119138831,-440.19947847,0.0005178,60]
[314254680,1708119138840,-538.03,0.0005178,60]
[314254681,1708119138849,-500.0,0.0005178,60]
[314254682,1708119138858,-500.0,0.0005178,60]
[314254683,1708119138868,-500.0,0.0005178,60]
[314254684,1708119138877,-500.0,0.0005178,60]
[314254685,1708119138886,-3625.09,0.0005178,60]
[314254686,1708119138896,-500.0,0.0005178,60]
[314254687,1708119138905,-964.44,0.0005178,60]
[314254688,1708119138914,-1492.92,0.0005178,60]
[314254689,1708119138928,-2046.77,0.0005178,60]
[314254690,1708119138938,-500.0,0.0005178,60]
[314254691,1708119138947,-499.87373218,0.0005178,60]
[314254692,1708119138957,-500.0,0.0005178,60]
[314254693,1708119138967,-802.5,0.0005178,60]
[314254694,1708119138976,-610.16,0.0005178,60]
[314254695,1708119138986,-500.0,0.0005178,60]
[314254696,1708119138997,-500.0,0.0005178,60]
[314254697,1708119139093,-1066.34,0.0005178,60]
[314254698,1708119139102,-500.0,0.0005178,60]
[314254699,1708119139114,-500.0,0.0005178,60]
[314254700,1708119139123,-797.01,0.0005178,60]
[314254701,1708119139133,-500.0,0.0005178,60]
[314254702,1708119139143,-3199.37,0.0005178,60]
[314254703,1708119139153,-729.2,0.0005178,60]